fUST/lending_fUST_20240502
["ID","MTS","AMOUNT","RATE_DAILY","PERIOD"]
[325207836,1714587046504,-151.0,0.00052876,7]
[325207837,1714587046514,-500.0,0.00052876,120]
[325207838,1714587046523,-1126.47,0.00052876,120]
[325207839,1714587046534,-481.78261855,0.00052876,120]
[325207840,1714587046543,-500.0,0.00052876,120]
[325207841,1714587046553,-151.0,0.00052876,7]
[325207842,1714587046562,-500.0,0.00052876,120]
[325207843,1714587046572,-151.0,0.00052876,7]
[325207844,1714587046582,-500.0,0.00052876,120]
[325207845,1714587046592,-151.0,0.00052876,7]
[325207846,1714587046602,-151.0,0.00052876,7]
[325207847,1714587046612,-500.0,0.00052876,120]
[325207848,1714587046621,-500.0,0.00052876,5]
[325207849,1714587046631,-500.0,0.00052876,120]
[325207850,1714587046642,-500.0,0.00052876,120]
[325207851,1714587046651,-915.284392,0.00052876,7]
[325207852,1714587046661,-500.0,0.00052876,120]
[325207854,1714587046672,-500.0,0.00052876,120]
[325207856,1714587046681,-500.0,0.00052876,120]
[325207858,1714587046690,-915.284392,0.00052876,7]
[325207860,1714587046700,-500.0,0.00052876,120]
[325207862,1714587046709,-915.284392,0.00052876,7]
[325207864,1714587046719,-915.284392,0.00052876,7]
[325207866,1714587046728,-500.0,0.00052876,120]
[325207868,1714587046737,-873.13,0.00052876,120]
[325207869,1714587046746,-915.284392,0.00052876,7]
[325207871,1714587046755,-500.0,0.00052876,120]
[325207873,1714587046764,-915.284392,0.00052876,7]
[325207875,1714587046774,-500.0,0.00052876,120]
[325207877,1714587046783,-915.284392,0.00052876,7]
[325207879,1714587046792,-915.284392,0.00052876,7]
[325207881,1714587046802,-500.0,0.00052876,120]
[325207883,1714587046811,-500.0,0.00052876,120]
[325207885,1714587046821,-500.0,0.00052876,120]
[325207887,1714587046830,-500.0,0.00052876,120]
[325207889,1714587046840,-1693.5,0.00052876,30]
[325207891,1714587046850,-151.0,0.00052876,7]
[325207893,1714587046859,-500.0,0.00052876,120]
[325207895,1714587046869,-151.0,0.00052876,7]
[325207897,1714587046878,-500.0,0.00052876,120]
[325207899,1714587046887,-151.0,0.00052876,7]
[325207901,1714587046896,-500.0,0.00052876,120]
[325207903,1714587046905,-500.0,0.00052876,120]
[325207905,1714587046915,-500.0,0.00052876,120]
[325207907,1714587046926,-500.0,0.00052876,120]
[325207909,1714587046936,-5868.66,0.00052876,120]
[325207911,1714587046946,-863.59,0.00052876,120]
[325207913,1714587046955,-151.0,0.00052876,7]
[325207915,1714587046964,-151.0,0.00052876,7]
[325207917,1714587046973,-151.0,0.00052876,7]
[325207919,1714587046982,-500.0,0.00052876,120]
[325207921,1714587046992,-500.0,0.00052876,120]
[325207923,1714587047001,-568.655142,0.00052876,7]
[325207925,1714587047011,-568.655142,0.00052876,7]
[325207927,1714587047020,-979.96,0.00052876,120]
[325207929,1714587047029,-568.655142,0.00052876,7]
[325207931,1714587047039,-500.0,0.00052876,120]
[325207934,1714587047048,-15068.53,0.00052876,120]
[325207936,1714587047058,-568.655142,0.00052876,7]
[325207937,1714587047067,-568.655142,0.00052876,7]
[325207939,1714587047076,-568.655142,0.00052876,7]
[325207941,1714587047085,-749.91,0.00052876,120]
[325207943,1714587047094,-692.14,0.00052876,120]
[325207945,1714587047103,-500.0,0.00052876,120]
[325207947,1714587047112,-831.6,0.00052876,120]
[325207949,1714587047121,-500.0,0.00052876,120]
[325207951,1714587047131,-500.0,0.00052876,120]
[325207953,1714587047140,-500.0,0.00052876,120]
[325207955,1714587047149,-500.0,0.00052876,120]
[325207957,1714587047158,-511.91,0.00052876,120]
[325207959,1714587047168,-500.0,0.00052876,120]
[325207961,1714587047178,-500.0,0.00052876,120]
[325207963,1714587047187,-500.0,0.00052876,120]
[325207965,1714587047196,-500.0,0.00052876,120]
[325207967,1714587047205,-500.0,0.00052876,120]
[325207969,1714587047215,-760.17,0.00052876,120]
[325207971,1714587047225,-500.0,0.00052876,120]
[325207973,1714587047234,-1268.84,0.00052876,120]
[325207975,1714587047243,-500.0,0.00052876,120]
[325207978,1714587047252,-546.33,0.00052876,120]
[325207979,1714587047262,-540.12,0.00052876,120]
[325207981,1714587047271,-500.0,0.00052876,120]
[325207983,1714587047280,-5097.71,0.00052876,120]
[325207985,1714587047288,-500.0,0.00052876,120]
[325207987,1714587047297,-500.0,0.00052876,120]
[325207989,1714587047307,-500.0,0.00052876,120]
[325207991,1714587047316,-500.0,0.00052876,120]
[325207993,1714587047326,-3224.88,0.00052876,120]
[325207995,1714587047336,-500.0,0.00052876,120]
[325207997,1714587047347,-500.0,0.00052876,120]
[325207999,1714587047357,-151.0,0.00052876,7]
[325208001,1714587047366,-196.312664,0.00052876,7]
[325208003,1714587047376,-2249.19,0.00052876,120]
[325208005,1714587047385,-500.0,0.00052876,120]
[325208007,1714587047394,-500.0,0.00052876,120]
[325208009,1714587047403,-449.72696002,0.00052876,120]
[325208011,1714587047412,-500.0,0.00052876,120]
[325208013,1714587047426,-472.371396,0.00052876,7]
[325208015,1714587047435,-472.371396,0.00052876,7]
[325208017,1714587047444,-472.371396,0.00052876,7]
[325208019,1714587047454,-500.0,0.00052876,120]
[325208021,1714587047463,-500.0,0.00052876,120]
[325208023,1714587047472,-472.371396,0.00052876,7]
[325208025,1714587047481,-500.0,0.00052876,120]
[325208027,1714587047490,-472.371396,0.00052876,7]
[325208029,1714587047499,-472.371396,0.00052876,7]
[325208031,1714587047508,-2416.17,0.00052876,120]
[325208033,1714587047518,-500.0,0.00052876,120]
[325208035,1714587047527,-500.0,0.00052876,120]
[325208037,1714587047535,-500.0,0.00052876,120]
[325208039,1714587047544,-672.45,0.00052876,120]
[325208041,1714587047554,-500.0,0.00052876,120]
[325208043,1714587047563,-772.53,0.00052876,120]
[325208045,1714587047571,-500.0,0.00052876,120]
[325208047,1714587047580,-916.2,0.00052876,120]
[325208049,1714587047589,-505.94488032,0.00052876,120]
[325208051,1714587047597,-500.0,0.00052876,120]
[325208053,1714587047606,-500.0,0.00052876,120]
[325208055,1714587047615,-500.0,0.00052876,120]
[325208057,1714587047625,-500.0,0.00052876,120]
[325208059,1714587047633,-2237.61,0.00052876,120]
[325208061,1714587047642,-269.710465,0.00052876,7]
[325208063,1714587047651,-269.710465,0.00052876,7]
[325208065,1714587047660,-269.710465,0.00052876,7]
[325208067,1714587047671,-269.710465,0.00052876,7]
[325208069,1714587047680,-506.23410785,0.00052876,120]
[325208071,1714587047689,-500.0,0.00052876,120]
[325208073,1714587047698,-221.28692868,0.00052876,120]
[325208075,1714587047707,-500.0,0.00052876,120]
[325208077,1714587047716,-269.710465,0.00052876,7]
[325208079,1714587047725,-500.0,0.00052876,120]
[325208081,1714587047734,-269.710465,0.00052876,7]
[325208083,1714587047743,-269.710465,0.00052876,7]
[325208086,1714587047754,-269.710465,0.00052876,7]
[325208088,1714587047762,-197.665273,0.00052876,7]
[325208089,1714587047769,-197.665273,0.00052876,7]
[325208091,1714587047776,-500.0,0.00052876,120]
[325208093,1714587047782,-197.665273,0.00052876,7]
[325208095,1714587047792,-500.96075011,0.00052876,120]
[325208097,1714587047803,-197.665273,0.00052876,7]
[325208099,1714587047812,-27833.99869942,0.00053,30]
[325208144,1714587048235,-500.0,0.00052876,120]
[325208146,1714587048245,-11070.83353545,0.00053,30]
[325208406,1714588026698,401.4,0.00025,60]
[325208467,1714588232043,-160.83272,0.00019178,2]
[325208469,1714588232052,-225.0025954,0.00019387,2]
[325208471,1714588232062,-291.66119089,0.00019586,2]
[325208473,1714588232071,-520.59853225,0.00019587,2]
[325208475,1714588232081,-24900.0,0.00019588,2]
[325208477,1714588232091,-2399.60143739,0.00019993,2]
[325208479,1714588232099,-164.00601484,0.0002091,2]
[325208481,1714588232109,-154.84515485,0.00020911,14]
[325208483,1714588232118,-5461.4995396,0.00020912,2]
[325208485,1714588232127,-2101.71813346,0.00020912,2]
[325208487,1714588232137,-1378.68043058,0.00020912,2]
[325208489,1714588232146,-1203.25513556,0.00020912,2]
[325208491,1714588232155,-36116.73741071,0.00020912,2]
[325208493,1714588232165,-5757.42558239,0.00020913,2]
[325208512,1714588232389,-1182.614844,0.00020913,2]
[325208871,1714588238072,-500.0,0.00019178,2]
[325208872,1714588238081,-500.0,0.00019178,2]
[325208873,1714588238091,-500.0,0.00019178,2]
[325208874,1714588238101,-500.0,0.00019178,2]
[325208875,1714588238110,-500.0,0.00019178,2]
[325208876,1714588238119,-500.0,0.00019178,2]
[325208877,1714588238129,-2438.41953646,0.00020913,2]
[325208878,1714588238139,-320.7,0.00028186,3]
[325208879,1714588238148,-447.2209758,0.00032,4]
[325208880,1714588238158,-320.7,0.00033585,3]
[325208881,1714588238168,-466.46671286,0.00034,4]
[325208882,1714588238177,-427.1288998,0.00035,2]
[325208883,1714588238187,-585.45277302,0.00037,2]
[325208884,1714588238196,-8822.10900146,0.00037,5]
[325208885,1714588238206,-154.87424562,0.00038873,7]
[325208886,1714588238215,-611.48398,0.00038894,2]
[325208887,1714588238225,-320.7,0.00038983,3]
[325208888,1714588238235,-5000.0,0.00039,4]
[325208889,1714588238244,-358.55978022,0.00039657,4]
[325208890,1714588238253,-2964.2518281,0.0004,4]
[325208891,1714588238263,-663.88717455,0.0004037,30]
[325208892,1714588238272,-316.00373945,0.00041,2]
[325208893,1714588238284,-320.7,0.00044382,3]
[325208894,1714588238294,-331.97760423,0.00045408,30]
[325208895,1714588238303,-153.32315408,0.00046752,30]
[325208896,1714588238312,-320.7,0.00049781,30]
[325208897,1714588238322,-424.71734,0.00049863,2]
[325208898,1714588238331,-276.655803,0.00049863,2]
[325208899,1714588238341,-154.81422293,0.0005,30]
[325208900,1714588238350,-486.33472313,0.0005,14]
[325208901,1714588238360,-350.0,0.0005,7]
[325208902,1714588238370,-663.88717455,0.00051171,60]
[325208903,1714588238379,-201304.17455727,0.00051966,30]
[325208904,1714588238388,-500.0,0.00052054,120]
[325208905,1714588238398,-500.0,0.00052054,120]
[325208906,1714588238407,-166.666666,0.00052055,2]
[325208907,1714588238417,-180.41079074,0.00052675,2]
[325208908,1714588238426,-500.0,0.00052677,120]
[325208909,1714588238435,-10000.0,0.00052678,120]
[325208910,1714588238445,-500.0,0.00052775,120]
[325208911,1714588238454,-500.0,0.00052775,120]
[325208912,1714588238464,-88888.0,0.00052776,120]
[325208913,1714588238474,-2000.0,0.00052776,2]
[325208914,1714588238483,-500.0,0.00052875,120]
[325208915,1714588238492,-500.0,0.00052875,120]
[325208916,1714588238501,-500.0,0.00052875,120]
[325208917,1714588238511,-500.0,0.00052875,120]
[325208918,1714588238520,-500.0,0.00052875,120]
[325208919,1714588238532,-500.0,0.00052875,120]
[325208920,1714588238541,-500.0,0.00052875,120]
[325208921,1714588238551,-500.0,0.00052875,120]
[325208922,1714588238560,-1295.78357749,0.00052876,61]
[325208923,1714588238570,-408.04024175,0.00052876,120]
[325208924,1714588238579,-500.0,0.00052876,120]
[325208925,1714588238589,-500.0,0.00052876,120]
[325208926,1714588238599,-500.0,0.00052876,120]
[325208927,1714588238608,-500.0,0.00052876,120]
[325208928,1714588238617,-500.0,0.00052876,120]
[325208929,1714588238627,-500.0,0.00052876,120]
[325208930,1714588238637,-500.0,0.00052876,120]
[325208931,1714588238647,-500.0,0.00052876,120]
[325208932,1714588238656,-500.0,0.00052876,120]
[325208933,1714588238665,-500.0,0.00052876,120]
[325208934,1714588238675,-500.0,0.00052876,120]
[325208935,1714588238684,-500.0,0.00052876,120]
[325208936,1714588238695,-500.0,0.00052876,120]
[325208937,1714588238707,-684.94,0.00052876,120]
[325208938,1714588238716,-1000.0,0.00052876,120]
[325208939,1714588238726,-500.0,0.00052876,120]
[325208940,1714588238735,-500.0,0.00052876,120]
[325208941,1714588238746,-466.99775864,0.00052876,120]
[325208942,1714588238755,-500.0,0.00052876,120]
[325208943,1714588238765,-563.44,0.00052876,120]
[325208944,1714588238774,-500.0,0.00052876,120]
[325208945,1714588238787,-500.0,0.00052876,120]
[325208946,1714588238796,-500.0,0.00052876,120]
[325208947,1714588238805,-500.0,0.00052876,120]
[325208948,1714588238814,-527.05,0.00052876,120]
[325208949,1714588238824,-500.0,0.00052876,120]
[325208950,1714588238833,-504.77645063,0.00052876,120]
[325208951,1714588238842,-655.82,0.00052876,120]
[325208952,1714588238851,-500.0,0.00052876,120]
[325208953,1714588238861,-212.75721461,0.00052876,120]
[325208954,1714588238871,-500.0,0.00052876,120]
[325208955,1714588238880,-498.36308607,0.00052876,120]
[325208956,1714588238890,-500.0,0.00052876,120]
[325208957,1714588238899,-500.0,0.00052876,120]
[325208958,1714588238908,-500.0,0.00052876,120]
[325208959,1714588238918,-500.0,0.00052876,120]
[325208960,1714588238927,-500.0,0.00052876,120]
[325208961,1714588238936,-500.0,0.00052876,120]
[325208962,1714588238946,-500.0,0.00052876,120]
[325208963,1714588238955,-500.0,0.00052876,120]
[325208964,1714588238965,-500.0,0.00052876,120]
[325208965,1714588238974,-500.0,0.00052876,120]
[325208966,1714588238983,-500.0,0.00052876,120]
[325208967,1714588238992,-500.0,0.00052876,120]
[325208968,1714588239002,-500.0,0.00052876,120]
[325208969,1714588239014,-500.0,0.00052876,120]
[325208970,1714588239023,-500.0,0.00052876,120]
[325208971,1714588239035,-500.0,0.00052876,120]
[325208972,1714588239044,-500.0,0.00052876,120]
[325208973,1714588239054,-500.0,0.00052876,120]
[325208974,1714588239063,-500.82008952,0.00052876,120]
[325208975,1714588239072,-418.10804058,0.00052876,120]
[325208976,1714588239082,-264.13887251,0.00052876,120]
[325208977,1714588239091,-500.0,0.00052876,120]
[325208978,1714588239100,-500.0,0.00052876,120]
[325208979,1714588239109,-500.46034649,0.00052876,120]
[325208980,1714588239120,-500.0,0.00052876,120]
[325208981,1714588239131,-503.71462416,0.00052876,120]
[325208982,1714588239140,-500.0,0.00052876,120]
[325208983,1714588239150,-500.0,0.00052876,120]
[325208984,1714588239160,-500.0,0.00052876,120]
[325208985,1714588239171,-500.0,0.00052876,120]
[325208986,1714588239182,-500.0,0.00052876,120]
[325208987,1714588239193,-500.0,0.00052876,120]
[325208988,1714588239204,-500.0,0.00052876,120]
[325208989,1714588239215,-642.09,0.00052876,120]
[325208990,1714588239226,-500.0,0.00052876,120]
[325208991,1714588239237,-500.0,0.00052876,120]
[325209009,1714588239465,-500.0,0.00052876,120]
[325209011,1714588239476,-500.0,0.00052876,120]
[325209013,1714588239488,-500.0,0.00052876,120]
[325209015,1714588239499,-500.0,0.00052876,120]
[325209017,1714588239510,-500.0,0.00052876,120]
[325209019,1714588239520,-500.0,0.00052876,120]
[325209021,1714588239530,-500.0,0.00052876,120]
[325209023,1714588239543,-501.23310096,0.00052876,120]
[325209025,1714588239553,-500.0,0.00052876,120]
[325209027,1714588239562,-500.0,0.00052876,120]
[325209029,1714588239572,-500.0,0.00052876,120]
[325209031,1714588239581,-588.11334972,0.00052876,120]
[325209032,1714588239591,-500.0,0.00052876,30]
[325209034,1714588239600,-500.0,0.00052876,120]
[325209037,1714588239610,-500.0,0.00052876,120]
[325209038,1714588239620,-500.0,0.00052876,120]
[325209040,1714588239629,-500.0,0.00052876,120]
[325209043,1714588239639,-582.12484227,0.00052876,120]
[325209045,1714588239649,-500.0,0.00052876,120]
[325209046,1714588239658,-500.0,0.00052876,120]
[325209048,1714588239668,-300.0,0.00052876,7]
[325209051,1714588239678,-500.0,0.00052876,120]
[325209054,1714588239692,-433.09130654,0.00052876,120]
[325209056,1714588239702,-500.0,0.00052876,120]
[325209060,1714588239711,-500.0,0.00052876,120]
[325209063,1714588239721,-500.0,0.00052876,120]
[325209067,1714588239731,-500.0,0.00052876,120]
[325209069,1714588239741,-500.0,0.00052876,120]
[325209072,1714588239750,-500.0,0.00052876,120]
[325209076,1714588239759,-500.0,0.00052876,120]
[325209078,1714588239771,-529.02583533,0.00052876,120]
[325209080,1714588239780,-500.0,0.00052876,120]
[325209081,1714588239792,-500.0,0.00052876,120]
[325209083,1714588239801,-500.0,0.00052876,120]
[325209085,1714588239811,-500.0,0.00052876,120]
[325209087,1714588239820,-516.72858567,0.00052876,120]
[325209089,1714588239829,-500.0,0.00052876,120]
[325209091,1714588239839,-500.0,0.00052876,120]
[325209093,1714588239849,-500.0,0.00052876,120]
[325209095,1714588239858,-517.89564404,0.00052876,120]
[325209097,1714588239868,-300.0,0.00052876,2]
[325209099,1714588239877,-704.08,0.00052876,120]
[325209101,1714588239886,-500.0,0.00052876,120]
[325209103,1714588239896,-347.96518211,0.00052876,120]
[325209105,1714588239905,-500.0,0.00052876,120]
[325209107,1714588239916,-500.0,0.00052876,120]
[325209109,1714588239925,-500.0,0.00052876,120]
[325209111,1714588239935,-642.94,0.00052876,120]
[325209113,1714588239944,-221.28692868,0.00052876,120]
[325209115,1714588239953,-839.33,0.00052876,120]
[325209117,1714588239962,-500.0,0.00052876,120]
[325209119,1714588239972,-500.0,0.00052876,120]
[325209121,1714588239981,-500.0,0.00052876,120]
[325209123,1714588239990,-500.0,0.00052876,120]
[325209125,1714588239999,-509.84,0.00052876,120]
[325209127,1714588240009,-500.0,0.00052876,120]
[325209129,1714588240018,-154.79876161,0.00052876,120]
[325209131,1714588240027,-500.0,0.00052876,120]
[325209133,1714588240040,-500.0,0.00052876,120]
[325209135,1714588240050,-500.0,0.00052876,120]
[325209137,1714588240059,-500.0,0.00052876,120]
[325209139,1714588240068,-500.0,0.00052876,120]
[325209141,1714588240077,-884.41,0.00052876,120]
[325209143,1714588240086,-154.78330338,0.00052876,2]
[325209145,1714588240095,-1031.09,0.00052876,120]
[325209147,1714588240104,-502.17,0.00052876,120]
[325209149,1714588240113,-500.0,0.00052876,120]
[325209151,1714588240122,-926.63,0.00052876,120]
[325209153,1714588240131,-500.0,0.00052876,2]
[325209155,1714588240140,-597.73,0.00052876,120]
[325209157,1714588240149,-509.7198587,0.00052876,120]
[325209159,1714588240158,-513.59,0.00052876,120]
[325209161,1714588240167,-529.00492174,0.00052876,120]
[325209163,1714588240176,-500.0,0.00052876,120]
[325209165,1714588240185,-748.94,0.00052876,120]
[325209167,1714588240194,-500.0,0.00052876,120]
[325209169,1714588240203,-500.0,0.00052876,120]
[325209171,1714588240212,-500.0,0.00052876,3]
[325209173,1714588240221,-500.0,0.00052876,120]
[325209174,1714588240230,-873.3,0.00052876,120]
[325209176,1714588240240,-500.0,0.00052876,120]
[325209178,1714588240249,-500.0,0.00052876,120]
[325209180,1714588240258,-500.0,0.00052876,120]
[325209182,1714588240268,-500.0,0.00052876,120]
[325209183,1714588240277,-610.74812381,0.00052876,120]
[325209184,1714588240289,-812.85,0.00052876,120]
[325209185,1714588240298,-500.0,0.00052876,120]
[325209186,1714588240307,-636.36539851,0.00052876,120]
[325209187,1714588240316,-500.0,0.00052876,120]
[325209188,1714588240325,-500.0,0.00052876,120]
[325209189,1714588240335,-500.0,0.00052876,120]
[325209190,1714588240344,-689.84,0.00052876,120]
[325209191,1714588240354,-503.04391728,0.00052876,120]
[325209192,1714588240365,-500.0,0.00052876,120]
[325209193,1714588240375,-500.0,0.00052876,120]
[325209194,1714588240384,-409.62844586,0.00052876,120]
[325209195,1714588240394,-500.0,0.00052876,120]
[325209196,1714588240403,-1220.95,0.00052876,120]
[325209197,1714588240412,-743.06,0.00052876,120]
[325209198,1714588240422,-500.0,0.00052876,120]
[325209199,1714588240431,-190.99130353,0.00052876,20]
[325209200,1714588240441,-500.0,0.00052876,120]
[325209201,1714588240450,-500.0,0.00052876,120]
[325209202,1714588240459,-874.94,0.00052876,120]
[325209203,1714588240468,-500.0,0.00052876,120]
[325209204,1714588240478,-500.0,0.00052876,120]
[325209205,1714588240487,-911.7,0.00052876,2]
[325209206,1714588240497,-500.0,0.00052876,120]
[325209207,1714588240507,-600.0,0.00052876,120]
[325209208,1714588240516,-500.0,0.00052876,120]
[325209209,1714588240526,-460.30168021,0.00052876,120]
[325209210,1714588240537,-574.98,0.00052876,120]
[325209211,1714588240546,-758.06,0.00052876,120]
[325209212,1714588240556,-463.93292326,0.00052876,120]
[325209213,1714588240566,-500.0,0.00052876,2]
[325209214,1714588240575,-500.0,0.00052876,120]
[325209215,1714588240585,-500.0,0.00052876,120]
[325209216,1714588240595,-500.0,0.00052876,120]
[325209217,1714588240604,-500.0,0.00052876,120]
[325209218,1714588240614,-512.92933634,0.00052876,120]
[325209219,1714588240623,-1107.24,0.00052876,120]
[325209220,1714588240633,-1647.06,0.00052876,120]
[325209221,1714588240642,-500.0,0.00052876,120]
[325209222,1714588240652,-500.0,0.00052876,120]
[325209223,1714588240662,-912.09,0.00052876,120]
[325209224,1714588240671,-333.82631431,0.00052876,2]
[325209225,1714588240681,-1018.54,0.00052876,120]
[325209226,1714588240691,-228.9410275,0.00052876,120]
[325209227,1714588240701,-513.95850227,0.00052876,2]
[325209228,1714588240713,-500.0,0.00052876,120]
[325209229,1714588240723,-500.0,0.00052876,120]
[325209230,1714588240734,-525.64,0.00052876,120]
[325209231,1714588240744,-500.0,0.00052876,120]
[325209232,1714588240755,-500.0,0.00052876,120]
[325209233,1714588240765,-151.0,0.00052876,120]
[325209234,1714588240775,-500.0,0.00052876,120]
[325209235,1714588240785,-500.0,0.00052876,120]
[325209236,1714588240795,-500.0,0.00052876,120]
[325209237,1714588240804,-500.0,0.00052876,120]
[325209238,1714588240814,-500.0,0.00052876,2]
[325209239,1714588240823,-500.0,0.00052876,120]
[325209240,1714588240832,-500.0,0.00052876,120]
[325209241,1714588240842,-500.0,0.00052876,120]
[325209242,1714588240852,-500.0,0.00052876,120]
[325209243,1714588240862,-1160.14,0.00052876,120]
[325209244,1714588240872,-982.93,0.00052876,120]
[325209245,1714588240883,-500.0,0.00052876,120]
[325209246,1714588240892,-183.54657057,0.00052876,120]
[325209247,1714588240902,-500.0,0.00052876,120]
[325209248,1714588240911,-671.79,0.00052876,120]
[325209249,1714588240920,-500.0,0.00052876,120]
[325209250,1714588240930,-1023.31,0.00052876,120]
[325209251,1714588240939,-500.0,0.00052876,120]
[325209252,1714588240948,-500.0,0.00052876,20]
[325209253,1714588240957,-595.93407744,0.00052876,120]
[325209254,1714588240967,-500.0,0.00052876,120]
[325209255,1714588240976,-486.96603842,0.00052876,120]
[325209256,1714588240985,-500.0,0.00052876,120]
[325209257,1714588240995,-500.0,0.00052876,120]
[325209258,1714588241004,-500.0,0.00052876,120]
[325209259,1714588241013,-500.0,0.00052876,120]
[325209260,1714588241023,-505.32168027,0.00052876,120]
[325209261,1714588241034,-500.0,0.00052876,120]
[325209262,1714588241044,-500.0,0.00052876,120]
[325209263,1714588241054,-698.14,0.00052876,120]
[325209264,1714588241064,-500.0,0.00052876,120]
[325209265,1714588241074,-500.0,0.00052876,120]
[325209266,1714588241084,-500.0,0.00052876,120]
[325209267,1714588241094,-748.64,0.00052876,120]
[325209268,1714588241104,-500.0,0.00052876,120]
[325209269,1714588241114,-500.0,0.00052876,120]
[325209270,1714588241125,-853.02,0.00052876,120]
[325209271,1714588241136,-500.0,0.00052876,7]
[325209272,1714588241146,-500.0,0.00052876,120]
[325209273,1714588241157,-500.0,0.00052876,120]
[325209274,1714588241168,-282.03850126,0.00052876,120]
[325209275,1714588241179,-621.45,0.00052876,120]
[325209276,1714588241189,-500.0,0.00052876,120]
[325209277,1714588241200,-500.0,0.00052876,120]
[325209278,1714588241210,-500.0,0.00052876,120]
[325209279,1714588241220,-481.78261855,0.00052876,120]
[325209280,1714588241229,-500.0,0.00052876,120]
[325209281,1714588241238,-500.0,0.00052876,120]
[325209282,1714588241247,-500.0,0.00052876,120]
[325209283,1714588241257,-500.0,0.00052876,120]
[325209284,1714588241266,-500.0,0.00052876,120]
[325209285,1714588241275,-500.0,0.00052876,120]
[325209286,1714588241286,-592.11,0.00052876,120]
[325209287,1714588241295,-196.46473343,0.00052876,120]
[325209288,1714588241305,-500.0,0.00052876,120]
[325209289,1714588241314,-500.0,0.00052876,120]
[325209290,1714588241324,-500.0,0.00052876,120]
[325209291,1714588241334,-500.0,0.00052876,120]
[325209292,1714588241343,-579.25,0.00052876,120]
[325209293,1714588241353,-500.0,0.00052876,120]
[325209294,1714588241364,-500.0,0.00052876,120]
[325209295,1714588241374,-500.0,0.00052876,120]
[325209296,1714588241384,-532.26301007,0.00052876,120]
[325209297,1714588241393,-500.0,0.00052876,120]
[325209298,1714588241403,-500.0,0.00052876,120]
[325209299,1714588241413,-500.0,0.00052876,120]
[325209300,1714588241422,-500.0,0.00052876,120]
[325209301,1714588241431,-261.16178485,0.00052876,120]
[325209302,1714588241440,-500.0,0.00052876,120]
[325209303,1714588241450,-500.0,0.00052876,120]
[325209304,1714588241459,-1147.1,0.00052876,120]
[325209305,1714588241469,-529.41612635,0.00052876,120]
[325209306,1714588241478,-500.0,0.00052876,120]
[325209307,1714588241487,-501.62757547,0.00052876,120]
[325209308,1714588241496,-500.0,0.00052876,120]
[325209309,1714588241506,-500.0,0.00052876,120]
[325209310,1714588241515,-500.0,0.00052876,120]
[325209311,1714588241524,-500.23716366,0.00052876,120]
[325209313,1714588241538,-500.0,0.00052876,120]
[325209315,1714588241547,-500.0,0.00052876,120]
[325209317,1714588241556,-500.0,0.00052876,120]
[325209319,1714588241566,-500.0,0.00052876,120]
[325209320,1714588241575,-1156.16,0.00052876,120]
[325209321,1714588241584,-500.0,0.00052876,120]
[325209322,1714588241593,-500.0,0.00052876,120]